bitfinex/quotes_SOLUSD_20220218
["timestamp","ask_amount","ask_price","bid_price","bid_amount"]
[1645189183188,1.48873612,94.365,94.302,30.11622624]
[1645189183786,1.48873612,94.366,94.302,30.11622624]
[1645189184487,1.48873612,94.366,94.301,53.50133748]
[1645189184690,6.78873612,94.365,94.301,53.50133748]
[1645189184889,1.48873612,94.365,94.302,30.1166956]
[1645189185088,5.3,94.364,94.302,30.1166956]
[1645189185288,1.48873612,94.363,94.273,5.3]
[1645189185490,1.48873612,94.356,94.274,22.9175]
[1645189185689,1.48873612,94.355,94.275,5.301]
[1645189185892,1.48873612,94.348,94.274,53.0378671]
[1645189186089,6.62538853,94.344,94.276,30.1203671]
[1645189186290,5.301,94.343,94.276,30.1203671]
[1645189186491,1.48873612,94.341,94.276,30.1203671]
[1645189186689,6.78973612,94.34,94.276,30.1203671]
[1645189187789,5.301,94.34,94.276,30.1203671]
[1645189188192,1.48873612,94.339,94.275,49.52037646]
[1645189188398,5.301,94.338,94.275,49.52037646]
[1645189188592,1.48873612,94.337,94.275,49.52037646]
[1645189188792,5.301,94.336,94.275,49.52037646]
[1645189189493,5.301,94.338,94.275,49.52037646]
[1645189189691,6.78973612,94.338,94.275,49.52037646]
[1645189189895,5.301,94.338,94.275,49.52037646]
[1645189190093,6.78973612,94.338,94.275,49.52037646]
[1645189190292,1.48873612,94.338,94.275,49.52037646]
[1645189190494,5.301,94.337,94.275,49.52037646]
[1645189190892,1.48873612,94.337,94.275,49.52037646]
[1645189191092,5.301,94.336,94.275,49.52037646]
[1645189191493,5.301,94.337,94.275,49.52037646]
[1645189192692,17.40203612,94.34,94.275,49.52037646]
[1645189193092,15.9133,94.34,94.276,30.12505504]
[1645189193293,6.78973612,94.339,94.276,30.12505504]
[1645189193494,6.78973612,94.339,94.275,49.52037646]
[1645189194194,1.48873612,94.338,94.275,49.52037646]
[1645189194401,1.48873612,94.336,94.275,49.52037646]
[1645189194595,5.301,94.335,94.275,49.52037646]
[1645189194795,5.301,94.337,94.275,49.52037646]
[1645189195295,6.78973612,94.337,94.275,49.52037646]
[1645189196496,1.48873612,94.336,94.275,49.52037646]
[1645189196697,17.40203612,94.34,94.275,49.52037646]
[1645189196895,15.9133,94.34,94.275,49.52037646]
[1645189197121,15.9133,94.34,94.276,30.12525718]
[1645189197302,1.48873612,94.348,94.278,105.8]
[1645189197500,1.48873612,94.348,94.281,169.75]
[1645189197701,1.48873612,94.365,94.281,169.75]
[1645189197897,1.48873612,94.374,94.285,105.8]
[1645189198100,1.48873612,94.374,94.284,63.95]
[1645189198101,1.48873612,94.375,94.287,105.8]
[1645189198300,1.48873612,94.376,94.291,105.8]
[1645189198499,1.48873612,94.377,94.301,105.8]
[1645189198698,1.48873612,94.379,94.303,105.8]
[1645189198898,1.48873612,94.38,94.305,105.8]
[1645189199297,1.48873612,94.38,94.306,30.12525718]
[1645189199499,1.48873612,94.381,94.307,5.299]
[1645189199698,1.48873612,94.382,94.307,35.42425718]
[1645189200099,1.48873612,94.378,94.308,30.12525718]
[1645189200303,1.48873612,94.376,94.31,15.9046]
[1645189200499,5.299,94.375,94.31,15.9046]
[1645189200708,1.48873612,94.377,94.31,15.9046]
[1645189200908,1.48873612,94.375,94.31,15.9046]
[1645189201105,1.48873612,94.376,94.31,15.9046]
[1645189201306,1.48873612,94.375,94.31,15.9046]
[1645189201505,1.48873612,94.377,94.31,15.9046]
[1645189201705,1.48873612,94.383,94.311,35.4119628]
[1645189201908,1.48873612,94.384,94.311,35.4119628]
[1645189202106,1.48873612,94.384,94.312,30.1129628]
[1645189202307,0.54461446,94.374,94.313,5.299]
[1645189202709,0.54461446,94.374,94.314,24.8624]
[1645189202909,0.54461446,94.374,94.315,5.299]
[1645189204111,1.48873612,94.373,94.315,5.299]
[1645189204314,1.48873612,94.371,94.314,24.8624]
[1645189204623,5.299,94.37,94.314,24.8624]
[1645189204825,0.54461446,94.374,94.315,5.299]
[1645189205025,0.54461446,94.374,94.321,105.8]
[1645189205226,0.54461446,94.374,94.323,105.8]
[1645189205829,0.54461446,94.374,94.324,35.41228014]
[1645189206226,0.54461446,94.374,94.331,105.8]
[1645189206425,0.54461446,94.374,94.335,105.8]
[1645189206826,0.54461446,94.374,94.337,105.8]
[1645189207428,0.54461446,94.374,94.341,105.8]
[1645189207829,0.54461446,94.374,94.344,63.95]
[1645189208029,0.54461446,94.374,94.345,111.098]
[1645189208426,0.54461446,94.374,94.351,105.8]
[1645189208626,0.54461446,94.374,94.353,105.8]
[1645189209431,0.54461446,94.374,94.361,105.8]
[1645189209628,0.54461446,94.374,94.36,15.8955]
[1645189210226,0.54461446,94.374,94.361,105.8]
[1645189211232,0.54461446,94.374,94.36,15.8955]
[1645189211431,0.54461446,94.374,94.361,105.8]
[1645189211631,1.446e-05,94.374,94.361,100.0]
[1645189212432,1.446e-05,94.374,94.362,105.8]
[1645189212834,1.446e-05,94.374,94.36,32.0435]
[1645189213236,1.446e-05,94.374,94.36,15.8955]
[1645189213835,1.446e-05,94.374,94.361,22.5262]
[1645189217136,1.446e-05,94.374,94.362,105.8]
[1645189217338,1.446e-05,94.374,94.361,22.5262]
[1645189217736,1.446e-05,94.374,94.362,105.8]
[1645189217936,1.446e-05,94.374,94.361,22.5262]
[1645189219239,1.446e-05,94.374,94.35,15.8987]
[1645189219437,1.446e-05,94.374,94.351,23.6119]
[1645189219937,1.446e-05,94.374,94.352,105.8]
[1645189220139,1.446e-05,94.374,94.351,23.6119]
[1645189220339,1.446e-05,94.374,94.335,5.298]
[1645189220541,1.446e-05,94.374,94.336,23.2023]
[1645189221342,1.446e-05,94.374,94.337,105.8]
[1645189221544,1.446e-05,94.374,94.34,15.9007]
[1645189221743,1.446e-05,94.374,94.336,23.2023]
[1645189224345,1.446e-05,94.374,94.341,105.8]
[1645189224544,1.446e-05,94.374,94.337,2.6293831]
[1645189224545,1.446e-05,94.374,94.345,105.8]
[1645189224748,1.446e-05,94.374,94.346,5.298]
[1645189225445,1.446e-05,94.374,94.347,22.5932]
[1645189225647,1.446e-05,94.374,94.348,5.298]
[1645189225847,1.446e-05,94.374,94.349,105.8]
[1645189226050,1.446e-05,94.374,94.351,105.8]
[1645189226247,1.446e-05,94.374,94.36,15.8967]
[1645189228153,1.446e-05,94.374,94.352,5.298]
[1645189228352,1.446e-05,94.374,94.35,15.8993]
[1645189231758,1.446e-05,94.374,94.34,15.9009]
[1645189233555,1.446e-05,94.374,94.341,169.75]
[1645189233758,1.446e-05,94.374,94.35,15.8977]
[1645189234055,1.446e-05,94.374,94.351,5.298]
[1645189234256,1.446e-05,94.374,94.344,5.298]
[1645189234656,1.446e-05,94.374,94.344,7.9273831]
[1645189234857,1.446e-05,94.374,94.35,15.8998]
[1645189236558,1.446e-05,94.374,94.342,23.5845]
[1645189237660,1.446e-05,94.374,94.343,2.6293831]
[1645189238058,1.446e-05,94.374,94.342,23.5845]
[1645189240662,1.446e-05,94.374,94.35,15.8998]
[1645189243364,1.48873612,94.398,94.35,15.8998]
[1645189244165,1.48873612,94.399,94.35,15.8998]
[1645189244966,1.48873612,94.398,94.35,15.8998]
[1645189245366,1.48873612,94.397,94.35,15.8998]
[1645189245893,1.48873612,94.396,94.35,15.8998]
[1645189246969,5.298,94.407,94.35,15.8998]
[1645189246970,1.48873612,94.395,94.35,15.8998]
[1645189247569,1.48873612,94.396,94.35,15.8998]
[1645189249775,1.48873612,94.395,94.35,15.8998]
[1645189250278,1.48873612,94.396,94.35,15.8998]
[1645189250476,1.48873612,94.402,94.351,108.4293831]
[1645189250778,1.48873612,94.41,94.36,15.8967]
[1645189250976,1.48873612,94.41,94.361,23.607]
[1645189251180,1.48873612,94.41,94.361,26.2363831]
[1645189251377,1.48873612,94.41,94.362,51.32896216]
[1645189251575,47.02958154,94.422,94.362,53.95834526]
[1645189251576,1.48873612,94.411,94.362,53.95834526]
[1645189251777,1.48873612,94.412,94.362,53.95834526]
[1645189252181,1.48873612,94.411,94.362,53.95834526]
[1645189252377,1.48873612,94.411,94.37,15.8965]
[1645189252577,1.48873612,94.411,94.362,51.32896216]
[1645189252775,1.48873612,94.409,94.362,51.32896216]
[1645189253503,1.48873612,94.408,94.362,51.32896216]
[1645189253702,1.48873612,94.407,94.362,51.32896216]
[1645189254106,1.48873612,94.408,94.362,51.32896216]
[1645189254308,1.48873612,94.406,94.362,51.32896216]
[1645189254707,1.48873612,94.406,94.362,53.95834526]
[1645189255209,1.48873612,94.407,94.362,53.95834526]
[1645189255408,1.48873612,94.408,94.362,53.95834526]
[1645189255610,1.48873612,94.41,94.362,53.95834526]
[1645189256008,1.48873612,94.412,94.37,15.8964]
[1645189256810,1.48873612,94.413,94.37,15.8964]
[1645189257012,1.48873612,94.412,94.37,15.8964]
[1645189257414,1.48873612,94.411,94.37,15.8964]
[1645189258109,0.14810032,94.438,94.37,15.8964]
[1645189258110,1.48873612,94.414,94.37,31.8951]
[1645189258311,1.48873612,94.415,94.37,31.8951]
[1645189258711,1.48873612,94.413,94.37,31.8951]
[1645189259112,1.48873612,94.416,94.371,2.6293831]
[1645189259313,1.48873612,94.417,94.371,2.6293831]
[1645189259515,1.48873612,94.417,94.372,23.7182]
[1645189261212,1.48873612,94.418,94.372,23.7182]
[1645189261411,1.48873612,94.42,94.372,23.7182]
[1645189261614,1.48873612,94.421,94.373,2.6293831]
[1645189261811,1.48873612,94.42,94.372,23.7182]
[1645189264718,1.48873612,94.419,94.372,23.7182]
[1645189265218,1.48873612,94.42,94.372,23.7182]
[1645189268725,1.48873612,94.419,94.372,23.7182]
[1645189271333,1.48873612,94.42,94.372,23.7182]
[1645189271934,1.48873612,94.418,94.372,23.7182]
[1645189272332,1.48873612,94.417,94.372,23.7182]
[1645189273132,1.48873612,94.416,94.372,23.7182]
[1645189273333,1.48873612,94.417,94.372,23.7182]
[1645189273536,1.48873612,94.416,94.372,23.7182]
[1645189273833,1.48873612,94.42,94.38,15.8946]
[1645189274636,1.48873612,94.419,94.38,15.8946]
[1645189275546,1.48873612,94.42,94.38,15.8946]
[1645189276243,1.48873612,94.42,94.372,23.7182]
[1645189276443,1.48873612,94.417,94.372,23.7182]
[1645189276644,1.48873612,94.416,94.372,23.7182]
[1645189277043,1.48873612,94.418,94.372,23.7182]
[1645189277746,1.48873612,94.417,94.372,23.7182]
[1645189277947,1.48873612,94.412,94.372,23.7182]
[1645189278247,1.48873612,94.411,94.372,23.7182]
[1645189278646,1.48873612,94.409,94.372,23.7182]
[1645189279047,1.48873612,94.408,94.372,23.7182]
[1645189279348,1.48873612,94.407,94.372,23.7182]
[1645189279546,1.48873612,94.406,94.372,23.7182]
[1645189279775,1.48873612,94.404,94.372,23.7182]
[1645189279972,1.48873612,94.405,94.372,23.7182]
[1645189280373,1.48873612,94.407,94.372,23.7182]
[1645189280572,1.48873612,94.408,94.372,23.7182]
[1645189280874,1.48873612,94.407,94.372,23.7182]
[1645189281274,1.48873612,94.408,94.372,23.7182]
[1645189281573,1.48873612,94.404,94.372,23.7182]
[1645189282677,5.52635036,94.41,94.35,15.8981]
[1645189282678,1.48873612,94.403,94.35,15.8981]
[1645189282875,1.48873612,94.403,94.351,23.7294]
[1645189283104,1.48873612,94.401,94.351,23.7294]
[1645189283676,1.48873612,94.401,94.352,47.41419014]
[1645189283876,1.48873612,94.4,94.352,47.41419014]
[1645189284277,1.48873612,94.4,94.36,15.8978]
[1645189284476,1.48873612,94.402,94.36,15.8978]
[1645189284880,1.48873612,94.401,94.36,15.8978]
[1645189285077,1.48873612,94.399,94.36,15.8978]
[1645189285577,1.48873612,94.4,94.36,15.8978]
[1645189286380,1.48873612,94.398,94.352,47.41419014]
[1645189286785,1.48873612,94.401,94.352,47.41419014]
[1645189286980,1.48873612,94.4,94.352,47.41419014]
[1645189287385,1.48873612,94.401,94.351,23.7294]
[1645189287580,1.48873612,94.396,94.351,23.7294]
[1645189287784,1.48873612,94.393,94.351,23.7294]
[1645189287981,1.48873612,94.392,94.351,23.7294]
[1645189288182,1.48873612,94.391,94.351,23.7294]
[1645189288589,1.48873612,94.391,94.348,5.297]
[1645189288788,1.48873612,94.393,94.348,5.297]
[1645189288988,1.48873612,94.392,94.348,5.297]
[1645189289385,1.48873612,94.391,94.348,5.297]
[1645189289585,1.48873612,94.392,94.348,5.297]
[1645189290085,1.48873612,94.385,94.348,5.297]
[1645189290288,1.48873612,94.382,94.348,5.297]
[1645189290686,1.48873612,94.384,94.348,5.297]
[1645189290884,1.48873612,94.383,94.348,5.297]
[1645189291689,1.48873612,94.385,94.348,5.297]
[1645189291887,1.48873612,94.385,94.321,22.7286]
[1645189291888,5.298,94.384,94.321,22.7286]
[1645189292088,1.48873612,94.383,94.321,22.7286]
[1645189292287,1.48873612,94.379,94.321,22.7286]
[1645189292490,5.299,94.378,94.321,22.7286]
[1645189292787,5.299,94.38,94.321,22.7286]
[1645189292988,9.6065226,94.379,94.322,41.56022551]
[1645189293191,5.299,94.378,94.322,41.56022551]
[1645189293388,24.5465,94.377,94.322,41.56022551]
[1645189293597,5.299,94.376,94.322,41.56022551]
[1645189294595,5.299,94.376,94.321,22.7286]
[1645189294797,5.299,94.376,94.31,15.906]
[1645189294997,15.9085,94.37,94.3,15.9078]
[1645189295195,5.3,94.369,94.3,15.9078]
[1645189295595,5.3,94.369,94.301,71.00008921]
[1645189295994,5.3,94.369,94.302,30.11639941]
[1645189297195,15.9101,94.36,94.302,30.11639941]
[1645189297398,28.3046,94.359,94.302,30.11639941]
[1645189297798,28.3046,94.359,94.301,40.8836898]
[1645189297997,28.3046,94.359,94.295,24.1737]
[1645189298420,15.9119,94.35,94.295,24.1737]
[1645189298598,5.3,94.349,94.295,24.1737]
[1645189298998,48.83870867,94.348,94.296,46.85236155]
[1645189299297,29.6131,94.347,94.296,46.85236155]
[1645189300504,24.3131,94.347,94.296,46.85236155]
[1645189300901,24.3131,94.347,94.297,30.1182166]
[1645189301102,24.3131,94.347,94.3,15.9077]
[1645189303207,24.3131,94.347,94.3,121.7077]
[1645189303506,23.6332,94.378,94.301,7.9293831]
[1645189303702,22.9139,94.377,94.31,15.9063]
[1645189303903,22.9139,94.377,94.311,5.299]
[1645189304101,47.12966928,94.376,94.311,5.299]
[1645189304301,47.12966928,94.376,94.312,24.3714]
[1645189304502,5.299,94.375,94.312,24.3714]
[1645189312916,15.9085,94.37,94.312,24.3714]
[1645189313113,5.299,94.369,94.312,24.3714]
[1645189314340,15.9085,94.37,94.312,24.3714]
[1645189317544,17.39723612,94.37,94.312,24.3714]
[1645189318442,1.48873612,94.369,94.312,24.3714]
[1645189318642,17.39723612,94.37,94.312,24.3714]
[1645189319741,1.48873612,94.364,94.312,24.3714]
[1645189322849,1.48873612,94.363,94.312,24.3714]
[1645189323050,1.48873612,94.36,94.312,24.3714]
[1645189323248,1.48873612,94.359,94.312,24.3714]
[1645189324053,1.48873612,94.358,94.312,24.3714]
[1645189324552,1.48873612,94.359,94.312,24.3714]
[1645189324953,1.48873612,94.359,94.3,15.9077]
[1645189325153,1.48873612,94.355,94.301,23.7803]
[1645189325352,1.48873612,94.353,94.301,23.7803]
[1645189325956,1.48873612,94.353,94.302,50.0094904]
[1645189326155,1.48873612,94.354,94.302,50.0094904]
[1645189327355,1.48873612,94.355,94.302,50.0094904]
[1645189327553,6.78873612,94.354,94.302,50.0094904]
[1645189327753,1.48873612,94.355,94.302,50.0094904]
[1645189327953,1.48873612,94.355,94.301,23.7803]
[1645189328157,5.3,94.354,94.301,23.7803]
[1645189328553,6.78873612,94.354,94.301,23.7803]
[1645189328755,1.48873612,94.354,94.301,23.7803]
[1645189328961,1.48873612,94.354,94.301,65.55133353]
[1645189329353,24.824,94.359,94.301,65.55133353]
[1645189330759,1.48873612,94.366,94.31,15.9063]
[1645189330960,1.48873612,94.365,94.31,15.9063]
[1645189331159,1.48873612,94.367,94.31,15.9063]
[1645189331362,24.762,94.368,94.31,15.9063]
[1645189331959,1.48873612,94.367,94.31,15.9063]
[1645189332158,1.48873612,94.362,94.31,15.9063]
[1645189333059,1.48873612,94.361,94.31,15.9063]
[1645189333259,1.48873612,94.362,94.31,15.9063]
[1645189335469,1.48873612,94.361,94.31,15.9063]
[1645189336377,1.48873612,94.362,94.31,15.9063]
[1645189336576,1.48873612,94.361,94.31,15.9063]
[1645189336777,1.48873612,94.36,94.31,15.9063]
[1645189337578,1.48873612,94.361,94.31,15.9063]
[1645189339992,1.48873612,94.364,94.31,15.9063]
[1645189340193,1.48873612,94.365,94.31,15.9063]
[1645189340394,26.25073612,94.368,94.31,15.9063]
[1645189341603,24.762,94.368,94.31,15.9063]
[1645189341803,24.762,94.368,94.311,30.10913034]
[1645189342008,24.762,94.368,94.32,15.9047]
[1645189342201,24.762,94.368,94.321,48.82828111]
[1645189342402,1.48873612,94.375,94.321,48.82828111]
[1645189342602,48.6184054,94.376,94.321,48.82828111]
[1645189342803,47.12966928,94.376,94.321,48.82828111]
[1645189343004,47.12966928,94.376,94.322,30.10659776]
[1645189343503,47.12966928,94.376,94.321,48.82828111]
[1645189343705,23.6332,94.378,94.321,48.82828111]
[1645189343903,1.48873612,94.379,94.33,15.9031]
[1645189344105,1.48873612,94.382,94.331,23.5144]
[1645189344505,1.48873612,94.383,94.331,23.5144]
[1645189344703,1.48873612,94.384,94.331,23.5144]
[1645189344904,40.94060962,94.383,94.331,23.5144]
[1645189345104,24.6689,94.382,94.331,23.5144]
[1645189346306,51.02309326,94.381,94.331,23.5144]
[1645189346809,24.6689,94.382,94.331,23.5144]
[1645189348007,48.0379622,94.381,94.331,23.5144]
[1645189348206,1.48873612,94.388,94.331,23.5144]
[1645189348408,1.48873612,94.39,94.332,30.10483554]
[1645189348608,1.48873612,94.393,94.332,30.10483554]
[1645189349108,1.48873612,94.391,94.331,23.5144]
[1645189349313,56.37632451,94.39,94.331,23.5144]
[1645189349510,54.88758839,94.39,94.331,23.5144]
[1645189349709,56.37632451,94.39,94.331,23.5144]
[1645189350312,54.88758839,94.39,94.331,23.5144]
[1645189354025,5.298,94.393,94.34,15.9011]
[1645189354417,5.298,94.394,94.34,15.9011]
[1645189354620,5.298,94.395,94.34,15.9011]
[1645189356120,5.298,94.395,94.331,23.5144]
[1645189356322,6.78673612,94.395,94.331,23.5144]
[1645189356719,1.48873612,94.391,94.331,23.5144]
[1645189357318,1.48873612,94.388,94.331,23.5144]
[1645189358523,1.48873612,94.387,94.331,23.5144]
[1645189359223,1.48873612,94.386,94.331,23.5144]
[1645189359923,1.48873612,94.387,94.331,23.5144]
[1645189360127,1.48873612,94.386,94.331,23.5144]
[1645189361328,1.48873612,94.384,94.331,23.5144]
[1645189361528,24.54963612,94.383,94.331,23.5144]
[1645189362234,23.0609,94.383,94.331,23.5144]
[1645189363331,1.48873612,94.382,94.331,23.5144]
[1645189363732,23.0609,94.383,94.331,23.5144]
[1645189364330,24.54963612,94.383,94.331,23.5144]
[1645189364931,23.0609,94.383,94.331,23.5144]
[1645189365830,1.48873612,94.384,94.331,23.5144]
[1645189366056,1.48873612,94.385,94.331,23.5144]
[1645189366555,1.48873612,94.384,94.331,23.5144]
[1645189366752,1.48873612,94.386,94.331,23.5144]
[1645189366954,1.48873612,94.387,94.331,23.5144]
[1645189367156,1.48873612,94.384,94.331,23.5144]
[1645189367353,1.48873612,94.382,94.331,23.5144]
[1645189367554,1.48873612,94.379,94.331,23.5144]
[1645189368258,1.48873612,94.38,94.331,23.5144]
[1645189368856,1.48873612,94.379,94.331,23.5144]
[1645189369655,1.48873612,94.378,94.331,23.5144]
[1645189370156,1.48873612,94.377,94.331,23.5144]
[1645189371259,1.48873612,94.376,94.331,23.5144]
[1645189372564,1.48873612,94.375,94.331,23.5144]
[1645189372763,1.48873612,94.376,94.331,23.5144]
[1645189375969,1.48873612,94.381,94.34,15.9014]
[1645189376270,1.48873612,94.385,94.34,15.9014]
[1645189376665,24.4361,94.394,94.34,15.9014]
[1645189376666,1.48873612,94.388,94.34,15.9014]
[1645189377171,1.48873612,94.389,94.34,15.9014]
[1645189377368,1.48873612,94.392,94.341,5.298]
[1645189377568,1.48873612,94.394,94.35,15.8988]
[1645189377766,1.48873612,94.395,94.35,15.8988]
[1645189378169,1.48873612,94.394,94.35,15.8988]
[1645189378368,1.48873612,94.395,94.35,15.8988]
[1645189378570,56.31750151,94.396,94.342,23.3716]
[1645189378768,1.48873612,94.39,94.342,23.3716]
[1645189378975,1.48873612,94.389,94.342,23.3716]
[1645189380368,1.48873612,94.388,94.342,23.3716]
[1645189380669,2.97747224,94.415,94.325,22.9563]
[1645189380670,5.298,94.527,94.483,2.37682934]
[1645189380873,0.65070684,94.519,94.46,15.24]
[1645189381068,6.84e-06,94.519,94.473,63.6]
[1645189381272,2.98856077,94.475,94.474,215.26608771]
[1645189381468,1.49512724,94.508,94.476,105.8]
[1645189381669,0.29120548,94.519,94.49,15.24]
[1645189381869,2.98856077,94.557,94.503,105.8]
[1645189382069,2.98856077,94.564,94.51,15.24]
[1645189382268,2.98856077,94.567,94.51,15.24]
[1645189382468,39.49733238,94.566,94.51,15.24]
[1645189382670,11.29932054,94.565,94.51,15.24]
[1645189382870,6.01132054,94.564,94.51,15.24]
[1645189383070,5.288,94.563,94.51,15.24]
[1645189383470,5.288,94.565,94.51,31.1108]
[1645189383671,39.49733238,94.566,94.511,65.73099326]
[1645189384271,5.288,94.594,94.512,13.95888953]
[1645189384472,5.288,94.604,94.512,13.95888953]
[1645189384873,5.288,94.604,94.52,15.8705]
[1645189385071,5.288,94.604,94.53,15.24]
[1645189385072,42.08493081,94.603,94.53,15.24]
[1645189385271,5.287,94.602,94.53,15.24]
[1645189386371,5.287,94.602,94.53,31.1103]
[1645189386574,111.087,94.602,94.53,15.24]
[1645189386772,2.6293831,94.601,94.53,15.24]
[1645189386973,5.287,94.6,94.53,15.24]
[1645189387575,2.6293831,94.599,94.53,15.24]
[1645189387875,5.287,94.598,94.53,15.24]
[1645189388480,5.287,94.602,94.53,31.1099]
[1645189388674,42.08493081,94.603,94.53,31.1099]
[1645189389274,5.287,94.602,94.53,31.1099]
[1645189389476,42.08493081,94.603,94.531,2.6293831]
[1645189389675,42.08493081,94.603,94.55,15.8658]
[1645189389877,42.08493081,94.603,94.56,15.24]
[1645189390578,42.08493081,94.603,94.561,2.6293831]
[1645189392681,42.08493081,94.603,94.56,15.24]
[1645189392880,5.285,94.602,94.56,15.24]
[1645189393081,111.085,94.602,94.53,179.56712121]
[1645189393285,113.7143831,94.602,94.522,2.6293831]
[1645189393480,122.2703509,94.599,94.491,5.29]
[1645189393682,5.288,94.598,94.46,15.24]
[1645189393881,52.9326,94.59,94.46,31.1198]
[1645189394084,111.089,94.589,94.461,63.6]
[1645189394481,2.6293831,94.588,94.461,63.6]
[1645189394683,0.96639545,94.578,94.464,105.8]
[1645189394882,5.289,94.577,94.464,63.6]
[1645189395284,5.289,94.577,94.481,51.91888971]
[1645189396291,15.8776,94.57,94.481,51.91888971]
[1645189396492,5.289,94.569,94.481,51.91888971]
[1645189397093,5.289,94.569,94.481,68.09388971]
[1645189397492,111.089,94.569,94.481,16.175]
[1645189397996,2.6293831,94.568,94.481,16.175]
[1645189398193,5.289,94.567,94.481,16.175]
[1645189399497,7.9183831,94.567,94.481,16.175]
[1645189399715,105.8,94.566,94.481,16.175]
[1645189399916,5.289,94.565,94.481,16.175]
[1645189400122,5.289,94.566,94.481,16.175]
[1645189403225,7.9183831,94.566,94.481,16.175]
[1645189403421,105.8,94.565,94.481,16.175]
[1645189403622,13.78111526,94.563,94.481,16.175]
[1645189405023,5.289,94.562,94.481,16.175]
[1645189405424,111.089,94.562,94.481,16.175]
[1645189405624,105.8,94.559,94.481,16.175]
[1645189405824,5.289,94.558,94.481,16.175]
[1645189407027,15.8782,94.56,94.481,16.175]
[1645189407028,5.289,94.559,94.481,16.175]
[1645189408228,111.089,94.559,94.481,16.175]
[1645189412133,15.8792,94.55,94.481,16.175]
[1645189412339,105.8,94.548,94.481,16.175]
[1645189412532,5.29,94.547,94.481,16.175]
[1645189412733,5.29,94.549,94.481,16.175]
[1645189413134,3.65563109,94.547,94.481,16.175]
[1645189413432,5.29,94.546,94.481,16.175]
[1645189415544,5.29,94.546,94.48,15.877]
[1645189415744,5.29,94.546,94.39,195.52]
[1645189415745,105.8,94.539,94.47,15.881]
[1645189415946,105.8,94.539,94.44,52.9377]
[1645189415947,105.8,94.537,94.44,52.9377]
[1645189416343,5.291,94.536,94.44,52.9377]
[1645189416544,5.291,94.544,94.44,52.9377]
[1645189416744,105.8,94.543,94.452,54.71067872]
[1645189416946,105.8,94.541,94.452,54.71067872]
[1645189417148,5.291,94.54,94.452,54.71067872]
[1645189417347,15.8829,94.53,94.46,15.8828]
[1645189417545,17.57736498,94.529,94.46,15.8828]
[1645189423052,105.8,94.528,94.46,15.8828]
[1645189423252,5.291,94.527,94.46,15.8828]
[1645189423452,5.291,94.528,94.46,15.8828]
[1645189432185,105.8,94.527,94.46,15.8828]
[1645189432387,105.8,94.519,94.443,5.291]
[1645189432586,105.8,94.517,94.45,15.8849]
[1645189432787,105.8,94.515,94.428,39.17803318]
[1645189432984,105.8,94.513,94.428,39.17803318]
[1645189433184,105.8,94.511,94.428,39.17803318]
[1645189433385,21.1777,94.51,94.429,5.292]
[1645189433589,21.1777,94.51,94.43,15.8871]
[1645189433784,105.8,94.509,94.43,15.8871]
[1645189433985,105.8,94.507,94.43,15.8871]
[1645189434187,105.8,94.505,94.43,15.8871]
[1645189434388,5.15038137,94.514,94.43,15.8871]
[1645189434389,134.2532,94.504,94.43,15.8871]
[1645189435488,15.8874,94.5,94.43,15.8871]
[1645189435688,5.292,94.499,94.43,15.8871]
[1645189436591,12.28636498,94.498,94.43,15.8871]
[1645189437991,15.8879,94.49,94.43,15.8871]
[1645189441597,15.8879,94.49,94.431,39.05020199]
[1645189442297,5.293,94.503,94.44,15.8864]
[1645189442497,5.292,94.524,94.441,5.292]
[1645189442698,5.292,94.524,94.441,29.9293]
[1645189442902,5.291,94.529,94.441,29.9293]
[1645189443098,105.8,94.527,94.441,32.5586831]
[1645189443300,105.8,94.525,94.441,32.5586831]
[1645189443598,5.291,94.524,94.441,32.5586831]
[1645189443798,5.291,94.527,94.441,32.5586831]
[1645189444402,15.8829,94.52,94.46,15.8825]
[1645189446700,15.8852,94.51,94.45,15.8849]
[1645189446900,105.8,94.509,94.45,15.8849]
[1645189447100,15.24,94.52,94.441,29.9293]